[Event "Turkish Youth Championships 2023"]
[Site "Samsun"]
[Date "2023.05.20"]
[Round "2.4"]
[White "Engin, Eyup Tarik"]
[Black "Cilek, Bora"]
[Result "1/2-1/2"]
[WhiteElo "1513"]
[BlackElo "2285"]
[Annotator "TA"]
[PlyCount "112"]
[EventDate "2023.05.19"]
[EventType "swiss"]
[EventCountry "TUR"]
[TimeControl "5400+30"]

{[%evp 30,112,22,14,30,26,20,20,27,0,0,0,0,0,2,0,8,0,0,0,3,7,4,0,0,0,0,0,0,0,0,0,0,0,0,0,0,0,0,0,0,0,0,-17,-13,-17,0,0,0,0,0,0,0,-135,19,30,29,27,142,143,143,135,135,12,12,12,135,0,36,0,0,0,0,0,0,0,0,0,0,0,0,0,0,0,0]} 1. e4 {[%emt 0:01:00]} c5 {[%emt 0:01:00]} 2. Nf3 {[%emt 0:00:30]} Nc6 {[%emt 0:00:30]} 3. d4 {[%emt 0:00:30]} cxd4 {[%emt 0:00:30]} 4. Nxd4 {[%emt 0:00:30]} g6 {[%emt 0:00:30]} 5. c4 {[%emt 0:00:30]} Nf6 {[%emt 0:00:30]} 6. Nc3 {[%emt 0:00:30]} d6 {[%emt 0:00:00]} 7. f3 {[%emt 0:01:30]} Nxd4 {[%emt 0:00:00]} 8. Qxd4 {[%emt 0:00:30]} Bg7 {[%emt 0:00:30]} 9. Be3 {[%emt 0:04:30]} O-O {[%emt 0:00:00]} 10. Qd2 {[%emt 0:00:30]} Qa5 {[%emt 0:08:00]} 11. Be2 {[%emt 0:09:30]} Be6 {[%emt 0:00:30]} 12. Rc1 {[%emt 0:01:30]} Rfc8 {[%emt 0:00:30]} 13. b3 {[%emt 0:01:30]} a6 {[%emt 0:03:30]} 14. O-O {[%emt 0:16:30]} Nd7 {[%emt 0:02:30]} 15. Bd4 {[%emt 0:09:30]} Bxd4+ {[%emt 0:06:30]} 16. Qxd4 {[%emt 0:00:00]} Rab8 {[%emt 0:16:30] B36: Sicilian: Maroczy Bind: Gurgenidze System.} (16... b5 {keeps more tension.} 17. f4 b4 18. f5 gxf5 19. exf5 Bxc4 20. Bxc4 bxc3 21. Rxc3 Qb6) 17. f4 {[%emt 0:04:00][%cal Of4f5] [#]} Qc5 $146 {[%emt 0:02:30]} ({Predecessor:} 17... Nf6 18. f5 Bd7 19. fxg6 hxg6 20. Rxf6 exf6 21. Nd5 Be6 22. Ne7+ Kg7 23. Nxc8 Rxc8 24. Rf1 {0-1 Perez Aleman,P (2204)-Vila Gazquez,X (2335) Las Palmas op 2005 (9)}) 18. Qxc5 {[%emt 0:05:30]} Rxc5 {[%emt 0:00:30]} 19. Na4 {[%emt 0:10:30] f5 is the strong threat.} Ra5 {[%emt 0:00:30]} 20. Bd1 {[%emt 0:02:30]} b5 {[%emt 0:14:30]} 21. b4 {[%emt 0:01:30]} Rxa4 {[%emt 0:01:30]} 22. Bxa4 {[%emt 0:00:30]} bxa4 {[%emt 0:00:30]} 23. f5 {[%emt 0:00:30]} gxf5 {[%emt 0:08:30]} 24. exf5 {[%emt 0:00:30]} Bxf5 {[%emt 0:00:30]} 25. Rxf5 {[%emt 0:00:30] Strongly threatening c5.} Rxb4 $11 {[%emt 0:00:00][%mdl 4096] Endgame KRR-KRN} 26. a3 {[%emt 0:11:36]} Rb3 {[%emt 0:01:00]} 27. Rcf1 {[%emt 0:02:58]} f6 {[%emt 0:01:30]} 28. R5f3 {[%emt 0:02:01]} a5 {[%emt 0:01:30]} 29. Rg3+ {[%emt 0:01:53]} Kf7 {[%emt 0:00:30]} 30. Rff3 {[%emt 0:01:21]} Rb1+ {[%emt 0:01:30]} 31. Rf1 {[%emt 0:00:43]} Rb2 {[%emt 0:01:30]} 32. Rh3 {[%emt 0:00:38]} Kg7 {[%emt 0:00:30]} 33. Rf4 {[%emt 0:01:55]} Ne5 {[%emt 0:01:30] Wards off Rg4+} 34. Rfh4 {[%emt 0:01:01]} h6 {[%emt 0:00:30]} 35. Rg3+ {[%emt 0:01:51]} Kf7 {[%emt 0:01:30]} 36. c5 {[%emt 0:00:47][%mdl 64] Discovered Attack} dxc5 {[%emt 0:00:30]} 37. Rxa4 {[%emt 0:00:12]} Rb5 {[%emt 0:00:00] Hoping for ...c4.} 38. Rh4 {[%emt 0:00:22]} c4 {[%emt 0:01:00] Threatens to win with ...Rb3.} 39. Rxh6 {[%emt 0:01:01]} a4 {[%emt 0:06:30]} 40. Rh8 {[%emt 0:00:31]} Nd3 {[%emt 0:00:30][%cal Rb5b1]} 41. Kf1 {[%emt 0:00:18] [#]} (41. h4 $11) 41... Rb1+ $2 {[%emt 0:01:25]} (41... Re5 $1 $17 {[%csl Gd3][%cal Re5e1]} 42. Rxd3 (42. Rh7+ $2 Ke6 $19) 42... cxd3) 42. Ke2 {[%emt 0:00:36]} Rb2+ {[%emt 0:00:00]} 43. Ke3 {[%emt 0:01:33]} Rb3 {[%emt 0:02:36]} (43... e5 $11 {keeps the balance.}) 44. Kd4 {[%emt 0:01:16]} Rxa3 {[%emt 0:00:07]} 45. Kxc4 {[%emt 0:00:00]} Ne5+ {[%emt 0:00:14] [#]} 46. Kb4 {[%emt 0:00:11]} (46. Kd5 $1 $16 Rxg3 47. hxg3) 46... Rxg3 $1 {[%emt 0:01:47]} 47. hxg3 {[%emt 0:00:17][%cal Ob4c3] KR-KN} Ng4 {[%emt 0:02:07]} (47... Kg6 $11) 48. Rh4 {[%emt 0:01:57]} (48. Kc4 $16) 48... f5 {[%emt 0:00:06]} 49. Kxa4 {[%emt 0:00:00]} Ne3 {[%emt 0:00:26] The position is equal.} 50. Kb4 {[%emt 0:02:38]} Nxg2 {[%emt 0:00:21]} 51. Rh2 {[%emt 0:00:39]} Ne3 {[%emt 0:00:26]} 52. Kc5 {[%emt 0:01:09]} e5 {[%emt 0:01:14]} 53. Re2 {[%emt 0:00:43]} f4 {[%emt 0:00:43]} 54. gxf4 {[%emt 0:00:41]} exf4 {[%emt 0:00:04]} 55. Rf2 {[%emt 0:00:26]} Ke6 {[%emt 0:01:11]} 56. Rxf4 {[%emt 0:00:08] Re4+ would be deadly.} Ke5 {[%emt 0:00:00] Dodges Re4+.   Weighted Error Value: White=0.17 (very precise) /Black=0.18 (very precise)} 1/2-1/2

[Event "Turkish Youth Championships 2023"]
[Site "Samsun"]
[Date "2023.05.20"]
[Round "2.5"]
[White "Angun, Batu"]
[Black "Bilgin, Ali Tugrul"]
[Result "1/2-1/2"]
[WhiteElo "2205"]
[BlackElo "1371"]
[Annotator "TA"]
[PlyCount "68"]
[EventDate "2023.05.19"]
[EventType "swiss"]
[EventCountry "TUR"]
[TimeControl "5400+30"]

{[%evp 15,68,20,12,4,28,-4,-14,-28,-22,-22,-25,-21,-26,-22,-19,-25,-24,-113,-104,-96,-25,-22,0,-15,-22,-15,-20,-38,-13,-206,-205,-379,-362,-347,-354,-480,-498,-497,-490,-505,-525,-525,-506,-513,-504,-519,-513,-492,-475,-523,-515,-542,-490,-456,-383]} 1. d4 {[%emt 0:01:00]} Nf6 {[%emt 0:01:00]} 2. c4 {[%emt 0:00:30]} g6 {[%emt 0:00:30]} 3. Nc3 {[%emt 0:00:30]} d5 {[%emt 0:00:30]} 4. cxd5 {[%emt 0:00:30]} Nxd5 {[%emt 0:00:30]} 5. e4 {[%emt 0:00:30]} Nxc3 {[%emt 0:00:30]} 6. bxc3 {[%emt 0:00:30]} Bg7 {[%emt 0:00:30]} 7. Nf3 {[%emt 0:00:30]} c5 {[%emt 0:00:30]} 8. Be3 {[%emt 0:00:30] 8.h3 is setting a new trend.} Qa5 {[%emt 0:00:30]} 9. Nd2 {[%emt 0:00:30] D85: Exchange Grünfeld: Unusual White 7th moves and lines with 7 Nf3.} (9. dxc5 $2 Qxc3+ 10. Bd2 Qxa1 $19) 9... O-O {[%emt 0:00:30][%cal Bh8f8,Bf8d8,Bd8d5][%mdl 32]} 10. Rc1 {[%emt 0:00:30]} cxd4 {[%emt 0:00:30]} 11. Nc4 {[%emt 0:00:00] The position is equal.} Qa6 {[%emt 0:02:30]} 12. cxd4 {[%emt 0:00:00]} b5 {[%emt 0:03:30]} 13. Nd2 {[%emt 0:00:30]} Nc6 {[%emt 0:13:30]} 14. Nb3 {[%emt 0:01:30][%cal Oa2a4]} Rd8 {[%emt 0:07:30][%cal Oc6d4]} 15. d5 {[%emt 0:11:30]} (15. Rc5 {feels hotter.} Nxd4 16. Nxd4 e5 17. Bxb5 Qb6 18. Rc6) 15... Nb4 {[%emt 0:22:30] [#]} 16. Nc5 $146 {[%emt 0:08:30]} (16. Nd4 $11) ({Predecessor:} 16. Nd4 Bd7 17. Qd2 Qa3 18. Be2 a5 19. O-O Qxa2 20. Qd1 Qa4 21. Qd2 e5 22. Nxb5 Bxb5 {½-½ Schmidt,T (2400)-Tiemann,C (2403) GER M06-C email 2017}) 16... Qxa2 $17 {[%emt 0:07:30] ...Bb2 is the strong threat.} 17. Bd2 {[%emt 0:04:30] [#]} Nxd5 {[%emt 0:16:30]} 18. exd5 $11 {[%emt 0:01:30]} (18. Rc2 Qa3 19. exd5 Bf5 $17) 18... Rxd5 {[%emt 0:00:30]} 19. Rc2 {[%emt 0:03:30]} Qa3 {[%emt 0:02:10]} 20. Qc1 {[%emt 0:02:30]} Qxc1+ {[%emt 0:00:35]} 21. Rxc1 {[%emt 0:00:30]} Bf5 {[%emt 0:05:20] Threatens to win with ...Bb2.} (21... Bb2 $5 {[%cal Rb2c1]} 22. Rb1 Bd4 $11) 22. Nb3 $2 {[%emt 0:09:30] [#] Now White is beyond hope.} (22. Bxb5 $11 {and White is okay.} Bb2 23. Ke2) 22... a5 $1 $19 {[%emt 0:06:38]} 23. g4 $2 {[%emt 0:08:30]} (23. Be2) 23... Be4 {[%emt 0:02:11]} (23... Bxg4 24. Bg2 Rxd2 25. Nxd2 $15 (25. Kxd2 Rd8+ 26. Ke3 e5 $17)) 24. Rg1 {[%emt 0:00:00]} a4 {[%emt 0:00:43]} 25. Nc5 {[%emt 0:00:00] [#]} Rxc5 {[%emt 0:03:36][%mdl 576] Promotion. Black is clearly winning.} 26. Rxc5 {[%emt 0:00:30]} a3 {[%emt 0:00:00] Strongly threatening ...a2.} 27. Bxb5 {[%emt 0:06:30]} a2 {[%emt 0:00:05]} 28. Ke2 {[%emt 0:00:00]} Bb1 {[%emt 0:00:14]} ({Not} 28... a1=B 29. Rgc1 $16) (28... a1=Q 29. Rxa1 Bxa1 30. f3 $17) 29. Bd3 {[%emt 0:00:00] And now Rxb1 would win.} a1=Q {[%emt 0:01:17] aiming for ...Bxd3+.} ({Don't play} 29... a1=B 30. Rxb1 Bae5 31. Be4 $18) 30. Rxb1 {[%emt 0:00:30]} Qd4 {[%emt 0:00:30][%csl LRc5,LRg4]} 31. Rc4 {[%emt 0:00:00]} Qe5+ {[%emt 0:00:00]} 32. Re4 {[%emt 0:00:00]} Qxh2 {[%emt 0:00:26]} 33. Rc1 {[%emt 0:03:30]} Rd8 {[%emt 0:02:19]} 34. Be3 {[%emt 0:00:00]} Qd6 {[%emt 0:00:38][%mdl 32768] Weighted Error Value: White=0.35/Black=0.06 (flawless) . An unexpected result.} 1/2-1/2

[Event "Turkish Youth Championships 2023"]
[Site "Samsun"]
[Date "2023.05.20"]
[Round "2.6"]
[White "Kavri, Yusuf Eren"]
[Black "Gokturk, Murat Kutay"]
[Result "1-0"]
[ECO "D94"]
[WhiteElo "2029"]
[BlackElo "1591"]
[Annotator "TA"]
[PlyCount "41"]
[EventDate "2023.05.19"]
[EventType "swiss"]
[EventCountry "TUR"]
[SourceTitle "playchess.com"]
[Source "ChessBase"]
[SourceQuality "1"]
[TimeControl "5400+30"]

{[%evp 16,41,24,12,60,50,82,61,90,74,80,64,111,117,151,138,240,142,474,450,539,483,799,607,943,696,767,726]} 1. c4 c6 2. Nf3 Nf6 3. Nc3 d5 4. e3 g6 5. d4 Bg7 6. b3 O-O 7. Bd3 Re8 8. O-O Nbd7 9. Bb2 Nf8 {D94: Grünfeld: 4 Nf3 Bg7 5 e3.} (9... e6 $11 {deserves consideration.}) 10. Qc2 a6 {[%emt 0:25:30] [#]} 11. Rfe1 $146 {[%emt 0:17:00]} ({Predecessor:} 11. e4 e6 12. Rfe1 b5 13. Ne5 Bb7 14. exd5 exd5 15. Nf3 Rc8 16. Rxe8 Nxe8 17. Ne2 {½-½ Galvanek,L (1957)-Masarik,R (1829) SVK-chT2C 1516 2015 (6.7)}) 11... Ne6 {[%emt 0:13:30] White is slightly better.} 12. Rad1 {[%emt 0:00:30]} Qc7 {[%emt 0:12:30]} 13. Ne5 {[%emt 0:10:30]} Rd8 {[%emt 0:09:30] [#]} (13... dxc4 $14 14. bxc4 (14. Bxc4 b5 $14) 14... c5) 14. f4 $1 $16 {[%emt 0:06:30] White is more active.} Bh6 {[%emt 0:07:30]} 15. Qf2 {[%emt 0:07:30]} b6 {[%emt 0:16:04]} (15... Bg7 $16 {was necessary.} 16. cxd5 cxd5) 16. Ba3 {[%emt 0:04:30]} ({White should play} 16. f5 $18) 16... Bb7 $2 {[%emt 0:01:24][%mdl 8192]} (16... Bg7 $16 {is more resistant.} 17. Rf1 dxc4 18. bxc4 (18. Nxc4 c5 $11) (18. Bxc4 b5 $14) 18... Nf8) 17. cxd5 $18 {[%emt 0:00:30] White is clearly winning.} Nxd5 {[%emt 0:02:21]} 18. Nxd5 {[%emt 0:00:00]} cxd5 {[%emt 0:01:26]} (18... Rxd5 $142 19. f5 Nd8) 19. Rc1 {[%emt 0:01:00]} Qb8 {[%emt 0:00:36]} 20. Bxe7 {[%emt 0:00:30]} Re8 {[%emt 0:00:14]} 21. Nd7 {[%emt 0:00:30][%csl LRb6,LRb8] Black got outplayed after the opening.   Weighted Error Value: White=0.56/Black=1.04} 1-0

[Event "Turkish Youth Championships 2023"]
[Site "Samsun"]
[Date "2023.05.20"]
[Round "2.6"]
[White "Hasirci, Ali Eren"]
[Black "Isilak, Enes"]
[Result "0-1"]
[WhiteElo "1284"]
[BlackElo "2181"]
[Annotator "TA"]
[PlyCount "60"]
[EventDate "2023.05.19"]
[EventType "swiss"]
[EventCountry "TUR"]
[TimeControl "5400+30"]

{[%evp 9,60,-17,-20,-13,-11,-18,-20,-23,-29,-29,-28,-46,-46,-49,-46,-54,-44,-52,-50,-62,-35,-89,-84,-83,-81,-85,-74,-143,-97,-108,-102,-125,-121,-166,-164,-166,-124,-311,-311,-310,-297,-304,-307,-446,-436,-744,-739,-726,-706,-2291,-1327,-29976,-29977]} 1. d4 {[%emt 0:01:00]} Nf6 {[%emt 0:01:00]} 2. e3 {[%emt 0:00:00]} d5 {[%emt 0:06:30]} 3. Bd3 {[%emt 0:00:00]} c5 {[%emt 0:04:30]} 4. c3 {[%emt 0:01:30]} e6 {[%emt 0:00:30]} 5. f4 {[%emt 0:01:30]} Bd6 {[%emt 0:00:30]} 6. Nf3 {[%emt 0:00:00] D00: 1 d4 d5: Unusual lines.} O-O {[%emt 0:00:30]} 7. O-O {[%emt 0:00:00]} b6 {[%emt 0:00:00]} 8. Nbd2 {[%emt 0:01:30] The position is equal.} cxd4 {[%emt 0:08:00]} 9. cxd4 {[%emt 0:00:00]} Ba6 {[%emt 0:08:30]} 10. Qe2 {[%emt 0:02:00]} Bxd3 {[%emt 0:02:30]} 11. Qxd3 {[%emt 0:00:30]} Nc6 {[%emt 0:00:30][%cal Bb8c6,Bc6e7,Be7f5][%mdl 32]} 12. a3 {[%emt 0:01:30] [#]} Ne7 $146 {[%emt 0:07:30]} ({Predecessor:} 12... Rc8 13. b3 Qe7 14. Bb2 Rfd8 15. Ne5 Bxe5 16. fxe5 Ne8 17. Rad1 f5 18. exf6 Nxf6 {1-0 Ozenir,E (1921)-Suleymanli,A (1810) EU-ch U10 24th 2014 (6)}) 13. Ne5 {[%emt 0:03:30]} Qc8 {[%emt 0:02:30]} 14. e4 {[%emt 0:02:30]} Qb7 {[%emt 0:06:30][%cal Rd5e4]} (14... dxe4 {keeps more tension.} 15. Nxe4 Nxe4 16. Qxe4 Rd8) 15. exd5 {[%emt 0:01:30]} (15. Nxf7 $1 $15 Rxf7 16. e5) 15... Qxd5 $17 {[%emt 0:01:30]} ({But not} 15... Nfxd5 $6 16. Ne4 Rad8 17. Bd2 $11 (17. Ng5 Nf6 $15)) (15... Nexd5 $6 16. Ndc4 Bc7 17. Bd2 $11) 16. Ndf3 {[%emt 0:03:30]} Rac8 {[%emt 0:08:30]} 17. Bd2 {[%emt 0:03:30]} Nf5 {[%emt 0:09:30]} 18. Be1 {[%emt 0:06:30]} ({White should play} 18. Rae1) 18... Qe4 {[%emt 0:01:30]} ({Black should try} 18... Nh5 {White must now prevent ...f6.} 19. g3 f6) 19. Qxe4 {[%emt 0:03:30]} Nxe4 {[%emt 0:00:00]} 20. Bf2 {[%emt 0:01:30] Against Ne3} Rc2 {[%emt 0:01:00] Black is much more active.} 21. Nd3 {[%emt 0:06:30]} Rfc8 {[%emt 0:00:30]} 22. g3 {[%emt 0:01:30]} f6 {[%emt 0:06:30]} 23. Rac1 $2 {[%emt 0:03:30] This costs White the game.} (23. Rab1 $17) 23... Nxf2 $19 {[%emt 0:00:00]} 24. Rxc2 {[%emt 0:00:30]} Nh3+ {[%emt 0:00:00][%mdl 64] [#] Zwischenzug} ({Worse is} 24... Rxc2 25. Rxf2 Rc4 26. Rd2 $17) 25. Kg2 {[%emt 0:00:00]} Nxf4+ {[%emt 0:00:30]} ({And not} 25... Rxc2+ 26. Kxh3 h6 27. Rf2 $17) 26. Nxf4 {[%emt 0:01:00]} (26. gxf4 {was called for.} Rxc2+ 27. Rf2) 26... Rxc2+ {[%emt 0:00:00]} 27. Kh3 {[%emt 0:02:30]} (27. Kg1 $142 Bxf4 28. gxf4) 27... g5 {[%emt 0:01:00]} 28. Ne1 {[%emt 0:01:30]} Rd2 {[%emt 0:01:30]} 29. Nfg2 {[%emt 0:02:30]} h5 {[%emt 0:00:30][%csl Gh5][%cal Rg5g4]} 30. g4 {[%emt 0:00:30] [#]} Ne3 $1 {[%emt 0:01:30][%mdl 576] Double Attack.   Weighted Error Value: White=0.85/Black=0.07 (flawless)} 0-1

[Event "Turkish Youth Championships 2023"]
[Site "Samsun"]
[Date "2023.05.20"]
[Round "2.9"]
[White "Temizer, Umut"]
[Black "Gunasti, Latife Yade"]
[Result "1-0"]
[WhiteElo "1973"]
[BlackElo "1456"]
[Annotator "TA"]
[PlyCount "89"]
[EventDate "2023.05.19"]
[EventType "swiss"]
[EventCountry "TUR"]
[TimeControl "5400+30"]

{[%evp 11,89,46,74,80,77,74,81,60,84,52,60,50,53,53,81,16,52,58,85,19,74,22,104,80,127,66,60,68,143,140,145,147,154,96,106,98,158,158,162,160,204,203,215,220,232,231,221,206,243,229,386,360,371,362,474,500,641,591,582,577,1095,1022,1415,1345,2230,2204,1923,1830,4902,2446,29973,29971,29983,29983,29983,29984,29984,29985,29985,29986]} 1. e4 {[%emt 0:01:00]} g6 {[%emt 0:01:00]} 2. d4 {[%emt 0:00:30][%cal Bd2d4,Bd4d5][%mdl 32]} Bg7 {[%emt 0:00:30]} 3. c4 {[%emt 0:00:30]} d6 {[%emt 0:00:30]} 4. Nc3 {[%emt 0:00:30]} Nc6 {[%emt 0:00:30]} 5. Be3 {[%emt 0:03:30]} e5 {[%emt 0:02:30]} 6. Nge2 {[%emt 0:00:30]} Nge7 {[%emt 0:01:30]} 7. d5 {[%emt 0:02:30] A42: Modern Defence: Averbakh Variation.} Nb8 {[%emt 0:01:30][%cal Bc6b8,Bb8d7,Bd7f6][%mdl 32]} 8. f3 {[%emt 0:00:00]} f5 {[%emt 0:00:30]} 9. Qd2 {[%emt 0:02:00] White is better.} O-O {[%emt 0:01:30]} 10. Nc1 {[%emt 0:03:30]} Nd7 {[%emt 0:03:30]} 11. Nd3 {[%emt 0:04:30]} Nf6 {[%emt 0:04:30]} 12. Be2 {[%emt 0:03:30]} Bd7 {[%emt 0:02:30] [#]} 13. O-O-O $146 {[%emt 0:07:30]} (13. c5 $16) ({Predecessor:} 13. O-O f4 14. Bf2 g5 15. c5 Ng6 16. a4 g4 17. cxd6 cxd6 18. Nb5 g3 19. hxg3 fxg3 20. Bxg3 {0-1 Barsamian,E (2239)-Pranizin,G (2182) Voronezh op-A 15th 2011 (6)}) 13... fxe4 {[%emt 0:00:30]} 14. fxe4 {[%emt 0:00:30]} a6 {[%emt 0:03:30]} 15. h3 {[%emt 0:07:30]} ({White should try} 15. c5 $16) 15... b5 {[%emt 0:06:30]} (15... c5 $11) 16. c5 {[%emt 0:06:30]} ({Better is} 16. cxb5 $1 $16 axb5 17. Nb4) 16... Qb8 {[%emt 0:02:30]} (16... a5 $1 $11 {remains equal.} 17. Nf2 b4) 17. c6 $16 {[%emt 0:06:30]} Bc8 {[%emt 0:01:30] [#]} (17... b4 $142 18. Nxb4 (18. cxd7 $2 bxc3 19. Qxc3 Nxe4 $19) 18... Qxb4) 18. Nf2 {[%emt 0:03:30] White is more active.} (18. b4 $1 $16) 18... b4 $14 {[%emt 0:03:30]} 19. Na4 $36 {[%emt 0:01:30][%mdl 2048] White has some pressure.} a5 {[%emt 0:09:30] [#]} ({Black should play} 19... Nh5 $14) 20. g4 $1 $16 {[%emt 0:00:30][%cal Bg2g4,Bg4g5][%mdl 32]} Ba6 {[%emt 0:04:30]} 21. Bxa6 {[%emt 0:02:30]} Rxa6 {[%emt 0:00:00]} 22. Qd3 {[%emt 0:00:00]} (22. h4 $142) 22... Ra8 {[%emt 0:01:00]} 23. Rhf1 {[%emt 0:00:00]} h5 {[%emt 0:05:30]} (23... Nc8 $142) 24. g5 {[%emt 0:02:30]} Nh7 {[%emt 0:02:30]} 25. h4 {[%emt 0:03:30]} Qc8 {[%emt 0:02:30]} 26. b3 {[%emt 0:02:30]} Kh8 {[%emt 0:02:30]} 27. Nb2 {[%emt 0:01:30]} Kg8 {[%emt 0:01:30]} 28. Kc2 {[%emt 0:03:30]} Kh8 {[%emt 0:04:30]} 29. Ra1 {[%emt 0:00:30]} Kg8 {[%emt 0:04:30]} 30. Qe2 {[%emt 0:01:30]} Qa6 $2 {[%emt 0:06:30]} (30... Qe8 31. Bd2 Rf7) 31. Qxa6 $18 {[%emt 0:02:30]} Rxa6 {[%emt 0:00:00]} 32. Nfd3 {[%emt 0:00:30]} Nc8 {[%emt 0:01:00]} 33. Rxf8+ {[%emt 0:00:30]} Nxf8 {[%emt 0:00:00] Black is weak on the light squares} 34. a3 {[%emt 0:00:30]} bxa3 {[%emt 0:03:00]} 35. Rxa3 {[%emt 0:00:30]} Nb6 {[%emt 0:01:20]} 36. Bxb6 {[%emt 0:03:30]} cxb6 {[%emt 0:00:06]} 37. Nc4 {[%emt 0:00:00][%cal Oc6c7] Black must now prevent c7!} b5 {[%emt 0:02:45]} 38. c7 {[%emt 0:02:00]} bxc4 {[%emt 0:00:51]} 39. c8=Q {[%emt 0:00:30]} (39. c8=B $2 {is the wrong capture.} cxd3+ 40. Kxd3 Ra8 $19) 39... cxd3+ {[%emt 0:00:30]} 40. Kxd3 {[%emt 0:00:30]} Ra7 {[%emt 0:00:00]} 41. b4 {[%emt 0:00:30] White mates.} Rf7 {[%emt 0:00:52]} 42. Rxa5 {[%emt 0:00:00]} Rf3+ {[%emt 0:00:22]} 43. Kd2 {[%emt 0:00:00]} Rf2+ {[%emt 0:00:40]} 44. Ke3 {[%emt 0:00:30]} Rb2 {[%emt 0:00:30]} 45. Ra7 {[%emt 0:00:30] Weighted Error Value: White=0.13 (very precise) /Black=0.53} 1-0

[Event "Turkish Youth Championships 2023"]
[Site "Samsun"]
[Date "2023.05.20"]
[Round "2.10"]
[White "Engin, Onur Cinar"]
[Black "Yilmaz, Oguz"]
[Result "1-0"]
[ECO "C54"]
[WhiteElo "1922"]
[BlackElo "1520"]
[Annotator "TA"]
[PlyCount "53"]
[EventDate "2023.05.19"]
[EventType "swiss"]
[EventCountry "TUR"]
[SourceTitle "playchess.com"]
[Source "ChessBase"]
[SourceQuality "1"]
[TimeControl "5400+30"]

{[%evp 17,53,0,6,0,0,0,0,0,10,12,37,0,25,39,25,31,29,8,68,64,51,53,67,54,121,121,135,136,225,221,275,275,890,883,782,727,29993,29994]} 1. e4 e5 2. Nf3 Nc6 3. Bc4 Bc5 4. c3 Nf6 5. d4 exd4 6. e5 d5 7. Bb5 Ne4 8. cxd4 Bb6 9. Nc3 O-O 10. Be3 {C54: Giuoco Piano: 4 c3 Nf6, main lines with 5 d4 and 5 d3.} Bg4 11. h3 Bh5 12. Qc2 {The position is equal.} Bg6 {White must now prevent ...Nxc3.} 13. Qb3 {[%emt 0:11:00]} Nxc3 {[%emt 0:29:00]} (13... Nxd4 {looks sharper.} 14. Bxd4 c5 15. Be3 c4) 14. bxc3 {[%emt 0:00:30] [#]} a6 $146 {[%emt 0:02:30]} ({Predecessor:} 14... f6 15. exf6 Na5 16. Qd1 c6 17. Bd3 Qxf6 18. Ne5 Bxd3 19. Qxd3 Bc7 20. f4 Qh4+ {0-1 Kollars,D (2611)-Duda,J (2731) Speed Chess Q2 blitz 2022 (10)}) 15. Bxc6 {[%emt 0:09:30]} bxc6 {[%emt 0:00:30]} 16. O-O {[%emt 0:00:30]} Qd7 {[%emt 0:21:30]} 17. Nh4 {[%emt 0:17:30]} Bd3 {[%emt 0:05:30]} (17... Be4 $1 $11) 18. Rfd1 $14 {[%emt 0:00:30]} Bc4 {[%emt 0:06:30]} 19. Qc2 {[%emt 0:01:30]} Rab8 {[%emt 0:07:30]} 20. f4 {[%emt 0:05:30]} Qe7 {[%emt 0:05:30]} (20... f6 $14) 21. Nf5 $16 {[%emt 0:06:30]} Qd7 {[%emt 0:02:30]} 22. Bf2 {[%emt 0:04:30][%cal Be3f2,Bf2h4,Bh4f6][%mdl 32]} a5 {[%emt 0:03:00] [#]} (22... Rbe8 $16 {was called for.}) 23. Bh4 $1 $18 {[%emt 0:05:30][%cal Of5g7] And now Nxg7! would win.} c5 {[%emt 0:06:32]} 24. Nxg7 {[%emt 0:14:30][%mdl 64] Bf6 would be deadly. Decoy} Kxg7 {[%emt 0:02:41]} (24... cxd4 25. Rd3 f5) 25. Bf6+ {[%emt 0:00:00]} Kg8 {[%emt 0:00:12] [#]} 26. Rd3 $1 {[%emt 0:01:00][%mdl 512] Threatening mate with Rg3+.} Bxd3 {[%emt 0:04:37]} (26... Qf5 27. Rg3+) 27. Qxd3 {[%emt 0:00:30] Weighted Error Value: White=0.06 (flawless) /Black=0.49} 1-0